bitfinex/quotes_ETHUSD_20241122
["timestamp","ask_amount","ask_price","bid_price","bid_amount"]
[1732318028925,5.8052,3309.9,3309.4,0.02970975]
[1732318029363,5.0,3309.8,3309.3,3.0]
[1732318029535,5.0,3309.8,3309.5,0.02958331]
[1732318029736,5.0,3309.8,3309.2,1.13]
[1732318029927,5.0,3309.8,3309.6,0.02958331]
[1732318030133,5.0,3309.8,3308.9,1.13]
[1732318030433,0.8052,3309.9,3308.9,0.8288]
[1732318030664,0.8052,3309.9,3309.0,0.02958331]
[1732318031328,5.0,3309.2,3309.0,0.02958331]
[1732318032030,5.0,3309.2,3309.1,3.0]
[1732318032438,5.7711,3309.6,3309.1,3.02958748]
[1732318032640,5.0,3309.6,3309.3,2.76866927]
[1732318033167,5.0,3309.6,3309.3,3.55226927]
[1732318033365,5.0,3309.7,3309.4,3.02958748]
[1732318034382,5.0,3309.7,3309.4,3.68777316]
[1732318038184,0.7588,3309.6,3309.4,0.02958748]
[1732318038386,0.7588,3309.6,3309.4,3.0]
[1732318038587,0.7588,3309.6,3309.0,3.0]
[1732318038745,0.7588,3309.6,3309.5,0.02956942]
[1732318038949,0.7588,3309.6,3309.0,3.0]
[1732318039363,5.0,3309.5,3309.0,3.0]
[1732318039552,5.0,3309.5,3309.1,0.02957499]
[1732318042497,5.0,3309.4,3309.1,0.02957499]
[1732318043372,5.0,3309.5,3309.1,0.02957499]
[1732318046487,5.0,3309.4,3309.1,0.02957499]
[1732318048495,5.0,3309.2,3309.1,0.02957499]
[1732318050768,5.0,3309.2,3309.1,1.34054628]
[1732318053621,5.0,3309.3,3309.1,1.55587091]
[1732318054682,5.0,3309.3,3309.1,1.55498318]
[1732318055303,0.7588,3309.6,3309.1,1.55498318]
[1732318055522,5.0,3309.2,3309.1,1.55498318]
[1732318055873,5.0,3309.2,3309.1,0.02868726]
[1732318055874,5.7731,3309.2,3309.1,0.02868726]
[1732318056213,5.7731,3309.2,3309.1,0.02603625]
[1732318056214,6.3231,3309.2,3309.1,0.02603625]
[1732318056512,0.7731,3309.0,3308.5,1.31097129]
[1732318056873,0.5819113,3308.9,3308.0,0.8177]
[1732318057188,0.7731,3308.8,3308.0,2.12867129]
[1732318057388,5.0,3308.5,3308.0,2.12867129]
[1732318057598,5.0,3308.5,3308.1,0.3012]
[1732318057909,5.0,3308.5,3308.2,1.31097129]
[1732318059085,5.0,3308.5,3308.4,1.31097129]
[1732318059625,5.7731,3308.7,3308.4,1.31097129]
[1732318060275,5.0,3308.5,3308.4,1.31097129]
[1732318060472,5.0,3308.5,3308.2,1.31097129]
[1732318061208,5.0,3308.5,3308.4,1.31097129]
[1732318061416,5.7731,3308.7,3308.4,1.31097129]
[1732318062180,5.7731,3308.7,3308.5,0.02795535]
[1732318063383,5.0,3308.6,3308.5,0.02795535]
[1732318064310,0.7731,3308.7,3308.5,0.02795535]
[1732318064513,5.0,3308.6,3308.5,0.02795535]
[1732318065013,5.0,3308.6,3308.5,0.02794979]
[1732318065397,5.0,3308.6,3308.2,1.31097129]
[1732318065604,5.0,3308.6,3308.3,0.02794979]
[1732318067526,5.0,3308.5,3308.3,0.02794979]
[1732318068299,5.0,3308.8,3308.3,0.02794979]
[1732318068638,5.0,3308.8,3308.4,1.31097129]
[1732318069188,5.0,3308.8,3308.5,0.02794979]
[1732318069387,5.0,3308.7,3308.5,0.02794979]
[1732318072329,5.37,3310.2,3308.6,2.11427129]
[1732318072330,5.0,3309.0,3308.6,2.11427129]
[1732318072523,5.0,3309.0,3308.8,1.31097129]
[1732318073136,5.0,3309.0,3308.9,0.02792756]
[1732318073542,5.0,3309.3,3308.9,0.02792756]
[1732318073746,5.0,3309.3,3309.1,1.31097129]
[1732318074104,5.0,3309.3,3309.2,0.0278956]
[1732318074416,5.0,3309.4,3309.2,0.0278956]
[1732318078337,5.0,3309.6,3309.3,1.31097129]
[1732318078920,5.0,3309.6,3309.4,0.02783724]
[1732318079312,5.0,3309.6,3309.5,1.31097129]
[1732318079517,5.0,3309.6,3309.5,2.07747129]
[1732318079950,5.0,3309.6,3309.5,2.10530853]
[1732318080240,5.0,3309.6,3309.5,1.33880853]
[1732318080457,5.0,3309.7,3309.5,3.02783724]
[1732318080772,0.7798,3309.6,3309.5,3.02783724]
[1732318081415,0.7798,3309.6,3309.5,0.02783724]
[1732318081652,0.7798,3309.6,3309.1,1.31097129]
[1732318081847,0.7798,3309.6,3309.2,0.02781224]
[1732318082439,5.7798,3309.6,3309.3,3.0]
[1732318082623,5.7798,3309.6,3309.4,0.02769277]
[1732318083032,5.7798,3309.6,3309.3,3.0]
[1732318083254,5.7798,3309.6,3309.4,0.02769277]
[1732318083457,5.0,3309.5,3309.4,0.02769277]
[1732318083759,5.0,3309.5,3308.9,1.31097129]
[1732318084061,5.0,3309.5,3309.0,0.02769277]
[1732318086453,5.0,3309.4,3309.0,0.02769277]
[1732318086870,5.0,3309.4,3309.2,3.0]
[1732318087042,5.0,3309.4,3308.8,2.07747129]
[1732318087224,5.0,3309.4,3308.9,0.02770805]
[1732318088876,0.7798,3309.3,3308.9,0.02770805]
[1732318090146,0.7798,3309.3,3308.8,1.31097129]
[1732318090783,5.0,3309.4,3309.2,1.31097129]
[1732318091280,5.0,3309.4,3309.3,0.02771222]
[1732318091641,5.0,3309.4,3309.2,1.31097129]
[1732318091841,5.0,3309.4,3309.3,0.02771222]
[1732318092071,5.0,3309.4,3309.2,1.31097129]
[1732318092441,5.0,3309.4,3309.3,0.02769971]
[1732318092641,5.0,3309.4,3309.2,1.31097129]
[1732318092882,5.0,3309.4,3309.3,0.02769971]
[1732318093384,5.0,3309.4,3309.2,1.31097129]
[1732318093878,5.0,3309.4,3309.3,0.02772748]
[1732318094375,5.0,3309.4,3309.2,1.31097129]
[1732318094754,5.0,3309.4,3309.3,0.02772748]
[1732318095259,5.0,3309.4,3309.2,1.31097129]
[1732318095467,5.0,3309.4,3309.3,0.02772748]
[1732318095677,5.0,3309.4,3309.2,1.31097129]
[1732318096075,5.0,3309.4,3309.3,0.02772748]
[1732318096461,5.0,3309.4,3309.2,1.31097129]
[1732318096695,5.0,3309.4,3309.3,0.02772748]
[1732318097063,5.0,3309.4,3309.2,1.31097129]
[1732318097273,5.0,3309.4,3309.3,0.02772748]
[1732318097800,5.0,3309.4,3309.2,2.09857129]
[1732318098201,5.0,3309.4,3309.3,0.02769692]
[1732318098509,10.0,3309.6,3309.2,2.09857129]
[1732318099461,5.0,3309.5,3309.2,2.09857129]
[1732318100484,10.0,3309.6,3309.2,2.09857129]
[1732318101380,5.0,3309.5,3309.2,2.09857129]
[1732318102261,10.0,3309.6,3309.2,2.09857129]
[1732318103289,5.0,3309.3,3309.2,2.09857129]
[1732318104572,5.0,3309.3,3309.2,1.31097129]
[1732318104912,5.0,3309.3,3309.2,1.33866266]
[1732318106521,10.0,3309.6,3309.3,0.8171]
[1732318106823,10.0,3309.6,3309.4,1.31097129]
[1732318106986,10.0,3309.6,3309.4,1.33864598]
[1732318107612,5.0,3309.6,3309.4,1.33864598]
[1732318108878,5.0,3309.6,3309.4,1.31097129]
[1732318110106,5.0,3309.6,3309.5,0.02767469]
[1732318114693,5.0,3309.6,3309.5,3.0]
[1732318115027,5.0,3309.6,3309.5,3.02767469]
[1732318115332,5.0,3309.6,3309.5,0.02767469]
[1732318115825,5.8045,3309.6,3309.5,3.0]
[1732318116126,5.8045,3309.6,3309.5,0.02765109]
[1732318116289,10.8045,3309.6,3309.5,0.02765109]
[1732318116493,10.8045,3309.6,3309.0,1.61217129]
[1732318116689,10.8045,3309.6,3309.0,1.85237842]
[1732318116927,10.8045,3309.6,3309.1,0.02765109]
[1732318117295,5.0,3309.5,3309.1,0.02765109]
[1732318117791,5.0,3309.5,3309.1,0.32885109]
[1732318120544,5.0,3309.3,3309.1,0.32885109]
[1732318121253,5.0,3309.3,3309.2,0.18800295]
[1732318121543,5.0,3309.4,3309.2,0.18800295]
[1732318121749,5.0,3309.4,3309.2,0.02765109]
[1732318123341,5.0,3309.5,3309.2,0.02765109]
[1732318124483,5.0,3309.4,3309.2,0.02765109]
[1732318125351,0.8045,3309.6,3309.2,0.02765109]
[1732318125352,5.0,3309.3,3309.2,0.02765109]
[1732318126397,5.0,3309.4,3309.2,0.21565404]
[1732318128403,5.0,3309.3,3309.2,0.02765109]
[1732318132771,5.8085,3309.3,3309.2,0.02765109]
[1732318137471,5.8085,3309.3,3309.1,0.39629331]
[1732318137672,0.7861113,3309.2,3309.1,0.39629331]
[1732318138399,0.7861113,3309.2,3307.1,0.04022353]
[1732318138400,0.7542,3308.9,3307.1,0.03022353]
[1732318138596,1.31097129,3308.6,3307.2,1.31097129]
[1732318138802,0.7542,3308.4,3307.2,1.33786077]
[1732318139000,0.7542,3308.3,3307.4,1.31097129]
[1732318139402,0.7542,3308.3,3307.5,0.02688948]
[1732318139727,0.7542,3308.3,3307.6,2.06537129]
[1732318140010,0.7542,3308.3,3307.6,2.27459737]
[1732318140225,0.7542,3308.3,3307.7,0.02688948]
[1732318140421,5.0,3308.0,3307.7,0.02688948]
[1732318141384,0.7542,3308.3,3307.7,0.02688948]
[1732318141385,5.0,3308.1,3307.7,0.02688948]
[1732318141878,5.0,3308.1,3307.4,1.31097129]
[1732318142082,5.0,3308.1,3307.5,0.02688948]
[1732318142285,5.0,3308.1,3307.8,1.31097129]
[1732318142517,5.0,3308.2,3307.7,0.7544]
[1732318142721,5.0,3308.2,3307.9,0.02688948]
[1732318142927,5.0,3308.2,3307.7,3.0]
[1732318143227,5.0319113,3308.2,3308.0,0.02688948]
[1732318143425,0.7861113,3308.1,3307.4,3.0]
[1732318143593,0.7861113,3308.1,3307.3,0.7544]
[1732318144119,0.0319113,3308.0,3307.3,0.7544]
[1732318144319,5.0,3308.0,3307.3,0.7544]
[1732318144552,5.0,3308.0,3307.1,1.31097129]
[1732318144553,5.0319113,3308.0,3307.1,1.31097129]
[1732318144839,5.0319113,3308.0,3307.3,1.31097129]
[1732318144996,5.0,3308.0,3307.3,1.31097129]
[1732318145400,5.0,3307.5,3307.3,1.31097129]
[1732318146851,5.0,3307.5,3307.4,3.0]
[1732318147036,5.0,3307.5,3307.3,1.31097129]
[1732318148417,0.7542,3308.1,3307.3,1.31097129]
[1732318148418,5.0,3307.6,3307.4,0.7544]
[1732318148614,5.0,3307.6,3307.5,1.51750842]
[1732318148818,5.0,3307.6,3307.5,1.33820125]
[1732318149432,5.0,3308.0,3307.5,1.33820125]
[1732318149627,5.0,3308.0,3307.7,1.31097129]
[1732318149838,5.0,3308.0,3307.9,1.31097129]
[1732318150041,5.0,3308.0,3307.9,2.06537129]
[1732318150532,5.0,3308.3,3307.9,2.2991064]
[1732318150836,5.0,3308.3,3308.1,1.31097129]
[1732318151141,5.0,3308.3,3308.2,0.02717991]
[1732318151345,5.0,3308.6,3308.2,0.02717991]
[1732318151720,0.7542,3308.4,3308.2,0.02717991]
[1732318151922,0.0319113,3308.3,3308.1,3.0]
[1732318152148,0.7542,3308.4,3308.2,0.02717991]
[1732318152353,0.0319113,3308.3,3307.3,3.81702794]
[1732318152668,0.7738,3308.2,3307.7,3.0]
[1732318152864,0.0319113,3308.1,3307.3,2.09777129]
[1732318153048,0.0319113,3308.1,3307.3,1.31097129]
[1732318153248,0.7738,3308.0,3307.0,0.7868]
[1732318153452,5.0,3307.4,3307.1,1.31097129]
[1732318154054,5.0,3307.4,3307.3,1.31097129]
[1732318154435,5.0,3307.5,3307.3,1.31097129]
[1732318154641,5.0,3307.5,3307.4,3.0]
[1732318155167,5.0,3307.5,3307.3,1.31097129]
[1732318155363,5.0,3307.4,3307.3,1.31097129]
[1732318156779,5.0,3307.4,3307.3,1.61217129]
[1732318160684,5.0,3307.4,3307.1,1.61217129]
[1732318161340,5.0,3307.4,3306.1,3.01]
[1732318161341,0.0319113,3307.3,3307.2,0.02721608]
[1732318161779,0.0319113,3307.3,3306.7,1.31097129]
[1732318161982,0.0319113,3307.3,3307.2,0.02721608]
[1732318162473,0.7786,3307.2,3306.5,1.31097129]
[1732318162636,0.0319113,3307.1,3306.5,1.31097129]
[1732318162837,0.7786,3307.0,3306.6,0.02721608]
[1732318163046,0.0319113,3306.9,3305.9,1.34740898]
[1732318163268,0.7786,3306.8,3306.7,0.02721608]
[1732318163471,0.7786,3306.8,3306.1,1.31097129]
[1732318163755,0.7786,3306.8,3306.2,0.02721608]
[1732318164391,5.0,3306.5,3306.2,0.02721608]
[1732318165355,5.0,3306.6,3306.2,0.02721608]
[1732318165754,5.0,3306.6,3306.4,1.31097129]
[1732318166163,5.0,3306.6,3306.5,0.02721608]
[1732318166378,5.0,3307.1,3306.5,0.02721608]
[1732318166568,5.0,3307.1,3306.8,1.31097129]
[1732318167199,5.0,3307.1,3306.9,0.02740938]
[1732318168494,0.7786,3307.4,3306.9,0.02740938]
[1732318168991,0.7786,3307.4,3306.3,3.86701177]
[1732318168992,0.7786,3307.4,3306.5,0.3012]
[1732318169195,0.7786,3307.4,3307.0,0.02740938]
[1732318169364,0.7786,3307.4,3306.5,0.3012]
[1732318169574,0.7786,3307.4,3307.1,0.02740938]
[1732318169955,0.7786,3307.4,3307.2,0.02740938]
[1732318170189,0.7786,3307.4,3306.8,0.7619]
[1732318170386,5.0,3307.3,3306.8,0.7619]
[1732318170881,5.0,3307.3,3306.8,1.11545744]
[1732318171617,5.0,3307.3,3306.9,0.3012]
[1732318173381,0.8195,3307.1,3306.8,0.3012]
[1732318173597,0.8195,3307.1,3306.3,0.3012]
[1732318174075,0.0319113,3307.0,3306.3,0.3012]
[1732318174311,0.8195,3307.1,3306.1,0.3012]
[1732318174510,5.0,3306.9,3306.1,0.74338469]
[1732318176012,5.0,3306.9,3306.1,3.74338469]
[1732318176621,5.0,3306.9,3306.1,0.3012]
[1732318176916,5.0,3306.9,3306.4,0.3012]
[1732318177492,5.0,3306.9,3306.3,2.77367437]
[1732318177493,5.0,3306.8,3306.5,1.0663]
[1732318178549,5.0,3306.9,3306.6,0.02650889]
[1732318179437,5.8195,3307.1,3306.6,0.02650889]
[1732318180320,5.0,3306.9,3306.6,0.02650889]
[1732318180518,5.0,3306.9,3306.5,1.0663]
[1732318181027,5.0,3306.9,3306.6,0.02653115]
[1732318183417,5.0,3306.7,3306.6,0.02653115]
[1732318190273,5.0,3306.7,3306.6,0.35930427]
[1732318190567,5.0,3306.9,3306.6,0.35930427]
[1732318190785,5.0,3306.9,3306.6,1.67226848]
[1732318191080,5.0,3306.9,3306.6,1.33949536]
[1732318191492,5.0,3306.8,3306.6,1.33949536]
[1732318192975,0.8307,3306.7,3306.6,0.02653115]
[1732318193148,0.8307,3306.7,3306.3,1.31296421]
[1732318193353,5.8307,3306.7,3306.3,1.31296421]
[1732318193593,5.8307,3306.7,3306.4,0.02659098]
[1732318193967,5.8307,3306.7,3306.6,3.0]
[1732318194275,5.8307,3306.7,3306.6,3.02659098]
[1732318194655,5.8307,3306.7,3306.6,0.02659098]
[1732318195149,5.8307,3306.7,3306.2,1.0554]
[1732318195354,5.8307,3306.7,3306.3,0.40554]
[1732318195547,5.8307,3306.7,3306.3,0.43213098]
[1732318197301,5.8307,3306.7,3306.3,0.02659098]
[1732318197595,5.0,3306.4,3306.2,1.0554]
[1732318198387,5.0,3306.5,3306.2,1.0554]
[1732318198617,5.0,3306.5,3306.2,1.73836101]
[1732318199492,5.0,3306.4,3306.2,1.73836101]
[1732318202467,5.8307,3306.7,3306.2,1.73836101]
[1732318202671,5.8307,3306.7,3306.3,0.4738361]
[1732318203256,5.8307,3306.7,3306.2,1.73836101]
[1732318204566,5.0,3306.4,3306.2,1.73836101]
[1732318205517,5.8307,3306.7,3306.2,1.73836101]
[1732318206419,5.0,3306.6,3306.2,1.73836101]
[1732318208286,5.8307,3306.7,3306.2,1.73836101]
[1732318209492,5.0,3306.4,3306.2,1.73836101]
[1732318209695,5.0,3306.4,3306.3,0.4738361]
[1732318210436,5.0,3306.6,3306.3,0.4738361]
[1732318211621,5.8307,3306.7,3306.3,0.4738361]
[1732318211828,5.8307,3306.7,3306.4,0.3012]
[1732318213305,5.8307,3306.7,3306.3,0.3012]
[1732318213505,5.0,3306.5,3306.3,0.3012]
[1732318214411,5.0,3306.4,3306.3,0.3012]
[1732318216258,5.0,3306.4,3306.3,0.7750361]
[1732318216653,5.0,3306.4,3306.3,2.08818522]
[1732318216954,5.0,3306.4,3306.3,5.08818522]
[1732318218151,5.0,3306.4,3306.3,1.61434912]
[1732318221547,5.0,3306.6,3306.3,1.61434912]
[1732318224359,4.0,3307.0,3306.4,1.0776]
[1732318224512,4.0,3307.0,3306.9,1.31314912]
[1732318224716,4.0,3307.0,3306.9,2.39074912]
[1732318225018,4.0,3307.0,3306.9,2.62982403]
[1732318225431,4.0,3307.0,3306.9,6.94297315]
[1732318225629,5.0,3307.6,3307.1,0.3012]
[1732318225960,5.0,3307.6,3307.5,2.39074912]
[1732318226115,5.0,3307.6,3307.5,2.62982403]
[1732318226314,9.0,3308.1,3307.5,5.62982403]
[1732318226559,9.0,3308.1,3308.0,1.31314912]
[1732318227101,9.0,3308.1,3307.8,1.31314912]
[1732318227364,0.7819113,3308.0,3307.1,0.7764]
[1732318227528,0.7819113,3308.0,3307.2,1.31314912]
[1732318227860,0.7819113,3308.0,3306.7,0.7764]
[1732318227861,0.75,3307.9,3307.0,1.31314912]
[1732318228061,0.0319113,3307.8,3307.0,1.31314912]
[1732318228557,0.0319113,3307.8,3307.2,1.31314912]
[1732318228763,0.0319113,3307.8,3307.0,2.77275602]
[1732318228917,0.0319113,3307.8,3307.1,3.0]
[1732318229114,0.75,3307.9,3307.3,2.77275602]
[1732318229424,5.0,3307.8,3307.4,3.0]
[1732318229759,5.0,3307.8,3307.4,3.6549156]
[1732318230351,5.0,3307.9,3307.4,3.6549156]
[1732318231343,5.0319113,3308.0,3307.4,3.6549156]
[1732318231659,5.0319113,3308.0,3307.4,3.0]
[1732318232424,5.0,3307.7,3307.4,3.0]
[1732318235498,5.0,3307.9,3307.4,3.0]
[1732318236365,5.0,3307.8,3307.4,3.0]
[1732318238304,5.0,3307.8,3307.1,0.3012]
[1732318238519,5.0,3307.7,3307.1,0.3012]
[1732318238719,5.0,3307.7,3307.1,0.71396316]
[1732318240881,0.0319113,3307.6,3307.1,0.71396316]
[1732318241089,5.7578,3307.7,3307.1,0.71396316]
[1732318241471,5.0,3307.6,3307.1,0.71396316]
[1732318241821,5.0,3307.6,3307.2,0.77796388]
[1732318242513,5.0,3307.5,3307.2,0.77796388]
[1732318243615,5.0,3307.6,3307.2,0.77796388]
[1732318245391,5.7578,3307.7,3307.2,0.77796388]
[1732318246387,5.0,3307.7,3307.2,0.77796388]
[1732318247513,5.0,3307.8,3307.2,0.77796388]
[1732318248032,0.0319113,3307.7,3307.2,0.77796388]
[1732318248182,5.0,3307.8,3307.2,0.77796388]
[1732318248383,5.0,3307.6,3307.2,0.77796388]
[1732318248606,4.99298962,3307.6,3307.2,0.77796388]
[1732318249421,5.0,3307.9,3307.2,0.77796388]
[1732318249832,5.0,3307.9,3307.3,0.7642]
[1732318249984,5.0,3307.9,3307.4,0.15723977]
[1732318250384,9.7578,3308.1,3307.3,1.0654]
[1732318250385,5.0,3308.0,3307.3,1.0654]
[1732318251135,4.99374942,3308.0,3307.3,1.0654]
[1732318251491,5.0,3308.0,3307.3,1.0654]
[1732318252534,5.0,3307.9,3307.4,0.3838156]
[1732318253556,5.0,3308.0,3307.4,0.3838156]
[1732318254057,5.0,3308.0,3307.5,0.44492156]
[1732318254562,5.0,3308.0,3307.6,3.8189]
[1732318254716,5.0,3308.0,3307.7,0.8189]
[1732318255429,9.0,3308.1,3307.7,0.8189]
[1732318255628,9.0,3308.1,3307.7,1.1201]
[1732318262461,14.0,3308.1,3307.7,1.1201]
[1732318262665,14.0,3308.1,3307.9,1.3120572]
[1732318265566,0.0319113,3308.0,3307.6,1.6132572]
[1732318265771,9.0,3308.1,3307.4,0.8189]
[1732318265986,0.0319113,3308.0,3307.7,3.0]
[1732318266148,0.0319113,3308.0,3307.6,0.29369243]
[1732318266347,0.8511113,3308.0,3307.6,0.29369243]
[1732318268507,5.0,3307.7,3307.6,0.29369243]
[1732318268644,5.8192,3307.7,3307.6,0.29369243]
[1732318272600,5.0,3307.7,3307.6,0.29369243]
[1732318273777,5.8230113,3307.7,3307.6,0.29369243]
[1732318273980,5.7911,3307.7,3307.6,0.29369243]
[1732318274281,5.7911,3307.7,3307.0,1.3120572]
[1732318274480,0.0319113,3307.6,3307.0,1.3120572]
[1732318275458,5.0,3307.3,3307.0,1.3120572]
[1732318277459,0.7911,3307.2,3307.0,1.3120572]
[1732318278893,5.0,3307.3,3307.0,1.3120572]
[1732318279217,5.0,3307.3,3305.4,1.3120572]
[1732318279218,0.55,3306.9,3305.4,1.3120572]
[1732318279380,0.7911,3306.6,3305.0,0.7905]
[1732318279757,0.55,3306.1,3305.3,1.3120572]
[1732318279880,0.7911,3305.9,3305.3,1.3120572]
[1732318280085,0.0319113,3305.8,3305.3,1.3120572]
[1732318280270,0.0319113,3305.8,3305.0,0.7905]
[1732318280613,5.0,3305.7,3305.1,1.3120572]
[1732318280779,5.0,3305.7,3305.1,1.52231292]
[1732318280981,5.0,3305.7,3305.3,1.3120572]
[1732318281177,5.0,3305.7,3305.5,1.3120572]
[1732318281505,5.7911,3305.9,3305.5,1.3120572]
[1732318281715,0.0319113,3305.8,3305.3,1.3120572]
[1732318282402,5.0319113,3305.8,3305.3,1.3120572]
[1732318282771,5.0319113,3305.8,3305.0,0.7905]
[1732318283111,5.0,3305.8,3305.1,0.37905]
[1732318284396,5.7911,3305.9,3305.1,0.37905]
[1732318287517,5.0319113,3305.8,3305.1,0.37905]
[1732318287829,0.01,3305.4,3303.5,0.7905]
[1732318288119,0.8230113,3305.4,3304.4,0.7905]
[1732318288412,5.0,3305.1,3304.5,0.35667346]
[1732318289421,5.0,3304.9,3304.5,0.35667346]
[1732318289920,5.0,3304.9,3304.6,0.41471735]
[1732318290075,0.0319113,3304.8,3304.5,0.35667346]
[1732318290275,5.0,3304.9,3304.0,3.0]
[1732318290481,0.0319113,3304.8,3304.1,0.7905]
[1732318290712,0.0319113,3304.8,3304.2,0.37905]
[1732318290888,5.0,3304.9,3304.2,0.37905]
[1732318291621,5.0,3305.0,3304.2,0.37905]
[1732318292522,5.0,3305.1,3304.2,0.37905]
[1732318293518,5.0319113,3305.0,3304.2,0.37905]
[1732318294534,5.0,3304.9,3304.2,0.37905]
[1732318295365,0.7911,3305.4,3304.2,0.37905]
[1732318295366,5.0,3305.0,3304.2,0.37905]
[1732318295580,5.0,3305.0,3304.4,3.0]
[1732318295779,5.0,3305.0,3304.5,0.57762346]
[1732318296373,5.0,3305.1,3304.5,0.57762346]
[1732318301390,5.0,3305.2,3304.5,0.57762346]
[1732318301690,5.0,3305.2,3304.6,0.35776235]
[1732318301911,5.0,3305.2,3304.6,1.17426235]
[1732318302423,5.0,3305.1,3304.6,1.17426235]
[1732318307334,5.0,3305.1,3304.7,2.80649262]
[1732318307486,5.0,3305.4,3304.8,0.3980755]
[1732318308086,5.0,3305.4,3304.9,0.8165]
[1732318308488,5.0,3305.5,3304.9,0.8165]
[1732318309432,5.0,3305.7,3304.9,0.8165]
[1732318309642,5.0,3305.7,3305.0,0.42145755]
[1732318310529,5.0,3305.8,3305.0,0.42145755]
[1732318310893,0.0319113,3305.7,3305.0,0.42145755]
[1732318311093,5.0,3305.8,3304.9,0.8165]
[1732318311522,5.0,3305.7,3304.9,0.8165]
[1732318312631,5.0,3305.6,3304.9,0.8165]
[1732318313394,5.0,3305.5,3304.9,0.8165]
[1732318314347,0.0319113,3305.9,3304.9,0.8165]
[1732318314492,5.0,3305.6,3304.9,0.8165]
[1732318315533,5.0,3305.7,3304.9,0.8165]
[1732318316616,0.751,3306.0,3305.0,1.31431822]
[1732318316617,5.0,3305.6,3305.0,1.31431822]
[1732318316936,5.0,3305.6,3305.1,0.21308182]
[1732318318154,5.0,3305.6,3305.4,0.771]
[1732318318446,5.0,3306.4,3305.6,0.771]
[1732318318600,5.0,3306.4,3305.9,1.31431822]
[1732318318907,5.0,3306.4,3306.1,2.08531822]
[1732318319121,5.0,3306.4,3306.3,1.31431822]
[1732318319515,5.0,3306.7,3306.3,1.31431822]
[1732318320713,0.0319113,3306.6,3306.1,0.771]
[1732318320914,0.0319113,3306.6,3306.4,3.0]
[1732318321222,0.0319113,3306.6,3305.7,1.0722]
[1732318321420,5.0,3306.4,3305.7,1.0722]
[1732318322345,0.0319113,3306.3,3305.7,0.771]
[1732318322508,5.0,3306.2,3305.7,0.771]
[1732318323464,5.0,3306.2,3305.7,1.42557285]
[1732318324329,0.8273,3306.4,3305.7,1.42557285]
[1732318324652,5.0,3306.3,3305.7,1.42557285]
[1732318325443,5.8273,3306.4,3305.7,1.42557285]
[1732318325647,5.8273,3306.4,3305.8,0.44255729]
[1732318326655,5.0,3306.3,3305.7,3.771]
[1732318327558,5.0,3306.2,3305.7,3.771]
[1732318328361,5.0,3306.2,3305.7,4.42557285]
[1732318329439,5.0,3306.3,3305.7,4.42557285]
[1732318330451,5.8273,3306.4,3305.7,4.42557285]
[1732318332357,5.0,3306.3,3305.7,4.42557285]
[1732318333260,5.0,3306.3,3305.7,1.42557285]
[1732318333590,5.0,3306.3,3305.7,0.771]
[1732318334589,5.0,3306.1,3305.7,0.771]
[1732318335443,5.8273,3306.4,3305.7,0.771]
[1732318336343,0.8273,3306.4,3305.7,1.1481]
[1732318336544,5.0,3306.5,3305.7,1.1481]
[1732318337021,5.0319113,3306.5,3305.7,1.1481]
[1732318337472,5.0,3306.3,3305.7,1.1481]
[1732318338499,5.0,3306.5,3305.7,3.92282852]
[1732318338648,5.0,3306.5,3305.8,3.0]
[1732318339583,5.0,3306.5,3305.9,0.7594]
[1732318339800,5.0,3306.5,3306.1,0.7594]
[1732318340459,5.0,3307.0,3306.1,0.7594]
[1732318340658,0.0319113,3306.9,3306.1,3.7594]
[1732318340860,5.0,3307.0,3306.1,3.0]
[1732318341065,5.0,3307.0,3306.3,0.7594]
[1732318342384,5.0,3306.9,3306.3,0.7594]
[1732318342758,5.0,3306.9,3306.5,1.31323257]
[1732318343586,5.0,3306.8,3306.5,1.31323257]
[1732318344390,5.0,3307.0,3306.5,1.31323257]
[1732318344761,5.0,3307.0,3306.7,1.31323257]
[1732318345085,5.0,3307.0,3306.9,1.31323257]
[1732318345499,5.0,3307.3,3306.9,1.31323257]
[1732318345791,5.0,3307.3,3307.2,2.07263257]
[1732318346446,5.0,3307.9,3307.2,2.07263257]
[1732318346652,5.0,3307.9,3307.2,0.7594]
[1732318347868,5.0,3307.9,3307.3,2.77275135]
[1732318348097,5.0,3307.9,3307.6,2.77275135]
[1732318348410,5.0,3307.9,3307.7,3.0]
[1732318348573,5.0,3308.2,3307.7,3.0]
[1732318349184,5.0,3308.2,3307.5,0.7594]
[1732318349395,5.8221113,3308.0,3307.5,0.7594]
[1732318349593,5.7902,3308.0,3307.5,0.7594]
[1732318349751,5.0,3308.0,3307.5,0.7594]
[1732318350257,5.0,3308.0,3307.7,3.0]
[1732318350457,5.0,3308.3,3307.7,3.0]
[1732318352496,14.0,3308.1,3307.7,3.0]
[1732318353553,9.0,3308.1,3307.7,3.0]
[1732318353871,9.0,3308.1,3307.5,0.7594]
[1732318354395,5.0,3308.0,3307.5,1.11261514]
[1732318354757,5.0,3308.0,3307.5,0.7594]
[1732318355133,0.0319113,3307.9,3307.5,0.7594]
[1732318355979,5.0,3308.0,3307.5,0.7594]
[1732318357473,14.0,3308.1,3307.5,0.7594]
[1732318357701,14.0,3308.1,3307.6,3.14869135]
[1732318357885,14.0,3308.1,3307.7,3.0]
[1732318358091,14.0,3308.1,3307.8,0.822]
[1732318358291,14.0,3308.1,3308.0,3.0]
[1732318358471,9.0,3308.1,3308.0,3.0]